[Event "MČR juniorů a juniorek v rapid šachu 2024"]
[Site "Hotel Fit Fun, Harrachov, Czech Republic"]
[Date "2024.09.21"]
[Round "2.10"]
[White "Rybacek Martin"]
[Black "Rybackova Lucie"]
[Result "1/2-1/2"]
[TimeControl "20+5"]
[WhiteFideId "23739266"]
[BlackFideId "23739207"]
[WhiteElo "1831"]
[BlackElo "1933"]

1. Nf3 {[%clk 00:19:55]} {[%emt 00:00:14]} Nf6 {[%clk 00:19:58]} {[%emt
00:00:13]} 2. g3 {[%clk 00:19:46]} {[%emt 00:00:13]} g6 {[%clk 00:20:01]}
{[%emt 00:00:02]} 3. Bg2 {[%clk 00:19:49]} {[%emt 00:00:02]} Bg7 {[%clk
00:20:04]} {[%emt 00:00:02]} 4. O-O {[%clk 00:19:52]} {[%emt 00:00:03]} O-O
{[%clk 00:20:06]} {[%emt 00:00:03]} 5. d4 {[%clk 00:19:30]} {[%emt 00:00:27]}
d5 {[%clk 00:19:51]} {[%emt 00:00:20]} 6. c4 {[%clk 00:19:33]} {[%emt
00:00:03]} c6 {[%clk 00:19:52]} {[%emt 00:00:04]} 7. cxd5 {[%clk 00:19:34]}
{[%emt 00:00:03]} cxd5 {[%clk 00:19:55]} {[%emt 00:00:02]} 8. Ne5 {[%clk
00:19:32]} {[%emt 00:00:08]} e6 {[%clk 00:19:57]} {[%emt 00:00:03]} 9. Nc3
{[%clk 00:19:04]} {[%emt 00:00:34]} Nfd7 {[%clk 00:19:48]} {[%emt 00:00:14]} 10.
f4 {[%clk 00:18:24]} {[%emt 00:00:45]} Nc6 {[%clk 00:19:24]} {[%emt 00:00:28]}
11. Be3 {[%clk 00:18:19]} {[%emt 00:00:10]} Ndxe5 {[%clk 00:17:37]} {[%emt
00:01:53]} 12. fxe5 {[%clk 00:17:26]} {[%emt 00:00:57]} Bd7 {[%clk 00:16:54]}
{[%emt 00:00:49]} 13. Qd2 {[%clk 00:16:52]} {[%emt 00:00:39]} f6 {[%clk
00:13:57]} {[%emt 00:03:01]} 14. exf6 {[%clk 00:14:59]} {[%emt 00:01:58]} Bxf6
{[%clk 00:13:47]} {[%emt 00:00:16]} 15. Kh1 {[%clk 00:07:43]} {[%emt 00:07:20]}
Bg7 {[%clk 00:08:50]} {[%emt 00:05:02]} 16. h4 {[%clk 00:04:42]} {[%emt
00:03:07]} Qe7 {[%clk 00:04:35]} {[%emt 00:04:20]} 17. Bg5 {[%clk 00:04:16]}
{[%emt 00:00:31]} Qd6 {[%clk 00:04:08]} {[%emt 00:00:33]} 18. Bf4 {[%clk
00:04:13]} {[%emt 00:00:08]} Qe7 {[%clk 00:03:59]} {[%emt 00:00:13]} 19. Bg5
{[%clk 00:03:40]} {[%emt 00:00:39]} Qd6 {[%clk 00:03:57]} {[%emt 00:00:06]} 20.
Bf4 {[%clk 00:03:45]} Qe7 {[%clk 00:04:00]} {[%emt 00:00:02]} 21. e4 {[%clk
00:03:10]} {[%emt 00:00:40]} dxe4 {[%clk 00:02:12]} {[%emt 00:01:53]} 22. d5
{[%clk 00:02:47]} {[%emt 00:00:28]} exd5 {[%clk 00:01:09]} {[%emt 00:01:08]} 23.
Nxd5 {[%clk 00:02:50]} {[%emt 00:00:02]} Qc5 {[%clk 00:00:45]} {[%emt
00:00:29]} 24. Bxe4 {[%clk 00:00:52]} {[%emt 00:02:02]} Qd4 {[%clk 00:00:31]}
{[%emt 00:00:19]} 25. Qxd4 {[%clk 00:00:37]} {[%emt 00:00:21]} Bxd4 {[%clk
00:00:31]} {[%emt 00:00:05]} 26. Rab1 {[%clk 00:00:18]} {[%emt 00:00:24]} Rae8
{[%clk 00:00:33]} {[%emt 00:00:03]} 27. Bg2 {[%clk 00:00:20]} {[%emt 00:00:02]}
Re2 {[%clk 00:00:28]} {[%emt 00:00:10]} 28. b3 {[%emt 00:00:14]} Bf5 {[%clk
00:00:27]} {[%emt 00:00:05]} 29. Rbe1 {[%clk 00:00:13]} {[%emt 00:00:05]} Rfe8
{[%clk 00:00:26]} {[%emt 00:00:06]} 30. Rxe2 {[%clk 00:00:14]} {[%emt
00:00:04]} Rxe2 {[%clk 00:00:30]} 31. Rd1 {[%clk 00:00:15]} {[%emt 00:00:04]}
Rxa2 {[%clk 00:00:21]} {[%emt 00:00:14]} 32. b4 {[%clk 00:00:11]} {[%emt
00:00:09]} Ra1 {[%clk 00:00:24]} {[%emt 00:00:03]} 33. Rxa1 {[%clk 00:00:14]}
{[%emt 00:00:02]} Bxa1 {[%clk 00:00:27]} {[%emt 00:00:02]} 34. b5 {[%clk
00:00:13]} {[%emt 00:00:06]} Nd4 {[%clk 00:00:29]} {[%emt 00:00:02]} 35. Nc7
{[%clk 00:00:16]} {[%emt 00:00:02]} Bd7 {[%clk 00:00:21]} {[%emt 00:00:14]} 36.
Bd5+ {[%clk 00:00:17]} {[%emt 00:00:03]} Kf8 {[%clk 00:00:19]} {[%emt
00:00:08]} 37. Bd6+ {[%clk 00:00:17]} {[%emt 00:00:01]} Kg7 {[%emt 00:00:31]}
38. Be5+ Kf8 {[%emt 00:00:02]} 1/2-1/2



[ePGN "0.1;DGT LiveChess/2.2.6"]

[Event "MČR juniorů a juniorek v rapid šachu 2024"]
[Site "Hotel Fit Fun, Harrachov, Czech Republic"]
[Date "2024.09.21"]
[Round "2.11"]
[White "Mrazek Adam"]
[Black "Sichrovsky Tomas"]
[Result "1-0"]
[TimeControl "20+5"]
[WhiteFideId "23725010"]
[BlackFideId "23704730"]
[WhiteElo "1830"]
[BlackElo "1928"]

1. c4 {[%clk 00:20:07]} {[%emt 00:00:02]} Nf6 {[%clk 00:20:09]} {[%emt
00:00:01]} 2. g3 {[%clk 00:20:10]} {[%emt 00:00:03]} g6 {[%clk 00:20:12]}
{[%emt 00:00:01]} 3. Bg2 {[%clk 00:20:12]} {[%emt 00:00:03]} Bg7 {[%clk
00:20:16]} {[%emt 00:00:02]} 4. Nc3 {[%clk 00:20:14]} {[%emt 00:00:03]} O-O
{[%clk 00:20:19]} {[%emt 00:00:03]} 5. Nf3 {[%clk 00:20:10]} {[%emt 00:00:08]}
c5 {[%clk 00:20:22]} {[%emt 00:00:03]} 6. O-O {[%clk 00:20:04]} {[%emt
00:00:10]} Nc6 {[%clk 00:20:25]} {[%emt 00:00:03]} 7. d4 {[%clk 00:20:02]}
{[%emt 00:00:07]} cxd4 {[%clk 00:20:27]} {[%emt 00:00:03]} 8. Nxd4 {[%clk
00:20:06]} {[%emt 00:00:01]} d6 {[%clk 00:20:31]} 9. Nxc6 {[%clk 00:17:00]}
{[%emt 00:03:11]} bxc6 {[%clk 00:20:35]} {[%emt 00:00:01]} 10. Bxc6 {[%clk
00:17:04]} Bh3 {[%clk 00:20:38]} {[%emt 00:00:01]} 11. Bg2 {[%clk 00:15:56]}
{[%emt 00:01:13]} Bxg2 {[%clk 00:20:42]} {[%emt 00:00:02]} 12. Kxg2 {[%clk
00:16:00]} Rc8 {[%clk 00:20:46]} 13. Qa4 {[%clk 00:13:06]} {[%emt 00:03:00]}
Qc7 {[%clk 00:18:34]} {[%emt 00:02:17]} 14. Nd5 {[%clk 00:10:47]} {[%emt
00:02:25]} Qb7 {[%clk 00:18:38]} {[%emt 00:00:01]} 15. Qb5 {[%clk 00:08:54]}
{[%emt 00:01:57]} Qa8 {[%clk 00:18:42]} 16. Kg1 {[%clk 00:08:12]} {[%emt
00:00:47]} Nxd5 {[%clk 00:18:08]} {[%emt 00:00:39]} 17. Qxd5 {[%clk 00:08:03]}
{[%emt 00:00:14]} Rc5 {[%clk 00:18:01]} {[%emt 00:00:12]} 18. Qxa8 {[%clk
00:06:06]} {[%emt 00:02:02]} Rxa8 {[%clk 00:18:02]} {[%emt 00:00:03]} 19. Be3
{[%clk 00:06:11]} Rxc4 {[%clk 00:18:05]} {[%emt 00:00:02]} 20. Rac1 {[%clk
00:06:15]} Rac8 {[%clk 00:17:34]} {[%emt 00:00:36]} 21. b3 {[%clk 00:05:03]}
{[%emt 00:01:16]} Rc2 {[%clk 00:17:37]} {[%emt 00:00:03]} 22. Kg2 {[%clk
00:04:41]} {[%emt 00:00:27]} f5 {[%clk 00:17:27]} {[%emt 00:00:15]} 23. Kf3
{[%clk 00:03:32]} {[%emt 00:01:14]} e5 {[%clk 00:17:14]} {[%emt 00:00:17]} 24.
a4 {[%clk 00:02:24]} {[%emt 00:01:13]} d5 {[%clk 00:15:01]} {[%emt 00:02:18]}
25. Rxc2 {[%clk 00:01:38]} {[%emt 00:00:52]} Rxc2 {[%clk 00:15:05]} 26. Rc1
{[%clk 00:01:43]} e4+ {[%clk 00:12:31]} {[%emt 00:02:39]} 27. Kg2 {[%clk
00:01:47]} Rxc1 {[%clk 00:12:00]} {[%emt 00:00:36]} 28. Bxc1 {[%clk 00:01:51]}
{[%emt 00:00:01]} Bc3 {[%clk 00:12:03]} 29. Ba3 {[%clk 00:00:12]} {[%emt
00:01:44]} d4 {[%clk 00:10:38]} {[%emt 00:01:29]} 30. b4 {[%clk 00:00:16]} d3
{[%clk 00:09:41]} {[%emt 00:01:02]} 31. exd3 {[%clk 00:00:21]} exd3 {[%clk
00:09:45]} 32. Kf3 {[%clk 00:00:25]} Bd4 {[%clk 00:09:38]} {[%emt 00:00:12]} 33.
Bc1 {[%clk 00:00:15]} {[%emt 00:00:16]} a6 {[%clk 00:08:25]} {[%emt 00:01:17]}
34. b5 {[%clk 00:00:08]} {[%emt 00:00:12]} axb5 {[%clk 00:07:07]} {[%emt
00:01:23]} 35. axb5 {[%clk 00:00:12]} {[%emt 00:00:01]} Kf7 {[%clk 00:06:07]}
{[%emt 00:01:04]} 36. Be3 {[%clk 00:00:17]} {[%emt 00:00:01]} Be5 {[%clk
00:06:11]} 37. Bf4 {[%clk 00:00:15]} {[%emt 00:00:07]} Bd4 {[%clk 00:06:13]}
{[%emt 00:00:02]} 38. Be3 {[%clk 00:00:18]} {[%emt 00:00:03]} Be5 {[%clk
00:06:17]} {[%emt 00:00:01]} 39. Bc5 {[%clk 00:00:17]} {[%emt 00:00:06]} Ke6
{[%clk 00:06:04]} {[%emt 00:00:18]} 40. Ke3 {[%clk 00:00:22]} d2 {[%clk
00:06:07]} {[%emt 00:00:02]} 41. Kxd2 {[%clk 00:00:22]} {[%emt 00:00:05]} Kd5
{[%clk 00:06:11]} 42. Be3 {[%clk 00:00:22]} {[%emt 00:00:05]} Kc4 {[%clk
00:03:58]} {[%emt 00:02:18]} 43. b6 {[%emt 00:00:02]} Kb5 {[%clk 00:04:02]} 44.
Kd3 {[%clk 00:00:16]} {[%emt 00:00:15]} Bd6 {[%clk 00:03:14]} {[%emt 00:00:53]}
45. h4 {[%clk 00:00:15]} {[%emt 00:00:06]} Be5 {[%clk 00:01:57]} {[%emt
00:01:22]} 46. Bd4 {[%clk 00:00:09]} {[%emt 00:00:11]} Bd6 {[%clk 00:01:44]}
{[%emt 00:00:18]} 47. Ke3 {[%clk 00:00:12]} {[%emt 00:00:01]} Kc6 {[%clk
00:01:24]} {[%emt 00:00:26]} 48. Kf3 {[%clk 00:00:11]} {[%emt 00:00:06]} h5
{[%clk 00:00:47]} {[%emt 00:00:42]} 49. Be3 {[%clk 00:00:12]} {[%emt 00:00:04]}
Be5 {[%clk 00:00:24]} {[%emt 00:00:28]} 50. Bf4 {[%clk 00:00:16]} {[%emt
00:00:02]} Bf6 {[%clk 00:00:28]} 51. Bc7 {[%clk 00:00:17]} {[%emt 00:00:03]}
Be7 {[%clk 00:00:21]} {[%emt 00:00:13]} 52. Kf4 {[%clk 00:00:19]} {[%emt
00:00:03]} Bf6 {[%clk 00:00:23]} {[%emt 00:00:03]} 53. Be5 {[%clk 00:00:21]}
{[%emt 00:00:03]} Be7 {[%clk 00:00:27]} 54. Bd4 {[%clk 00:00:23]} {[%emt
00:00:03]} Bd8 {[%clk 00:00:19]} {[%emt 00:00:13]} 55. Ke5 {[%clk 00:00:20]}
{[%emt 00:00:08]} Kb7 {[%clk 00:00:12]} {[%emt 00:00:12]} 56. Ke6 {[%clk
00:00:22]} {[%emt 00:00:03]} Kc6 {[%clk 00:00:10]} {[%emt 00:00:07]} 57. Kf7
{[%clk 00:00:21]} {[%emt 00:00:06]} g5 {[%clk 00:00:10]} {[%emt 00:00:05]} 58.
hxg5 {[%clk 00:00:24]} {[%emt 00:00:02]} Bxg5 {[%clk 00:00:14]} 59. Kg6 {[%clk
00:00:27]} {[%emt 00:00:02]} h4 {[%clk 00:00:18]} {[%emt 00:00:01]} 60. gxh4
{[%clk 00:00:16]} {[%emt 00:00:16]} Bxh4 {[%clk 00:00:22]} {[%emt 00:00:01]} 61.
Kxf5 {[%clk 00:00:19]} {[%emt 00:00:02]} Bd8 {[%clk 00:00:22]} {[%emt
00:00:05]} 62. Ke6 {[%clk 00:00:20]} {[%emt 00:00:03]} 1-0



[ePGN "0.1;DGT LiveChess/2.2.6"]

[Event "MČR juniorů a juniorek v rapid šachu 2024"]
[Site "Hotel Fit Fun, Harrachov, Czech Republic"]
[Date "2024.09.21"]
[Round "2.12"]
[White "Sknouril Jakub"]
[Black "Bartak Josef"]
[Result "0-1"]
[TimeControl "20+5"]
[WhiteFideId "23731133"]
[BlackFideId "23712252"]
[WhiteElo "1806"]
[BlackElo "1902"]

1. Nf3 {[%clk 00:20:07]} {[%emt 00:00:02]} Nf6 {[%clk 00:20:08]} {[%emt
00:00:03]} 2. c4 {[%clk 00:20:11]} g6 {[%clk 00:20:11]} {[%emt 00:00:02]} 3.
Nc3 {[%clk 00:20:15]} {[%emt 00:00:02]} Bg7 {[%clk 00:20:11]} {[%emt 00:00:03]}
4. g3 {[%clk 00:19:30]} {[%emt 00:00:50]} c6 {[%clk 00:20:09]} {[%emt
00:00:08]} 5. Bg2 {[%clk 00:18:54]} {[%emt 00:00:41]} d5 {[%clk 00:20:12]}
{[%emt 00:00:01]} 6. cxd5 {[%clk 00:18:57]} {[%emt 00:00:02]} cxd5 {[%clk
00:20:16]} {[%emt 00:00:02]} 7. d3 {[%clk 00:18:49]} {[%emt 00:00:13]} Nc6
{[%clk 00:20:13]} {[%emt 00:00:09]} 8. O-O {[%clk 00:18:41]} {[%emt 00:00:12]}
e5 {[%clk 00:19:10]} {[%emt 00:01:08]} 9. Qb3 {[%clk 00:14:05]} {[%emt
00:04:40]} d4 {[%clk 00:18:06]} {[%emt 00:01:10]} 10. Ng5 {[%clk 00:10:06]}
{[%emt 00:04:04]} O-O {[%clk 00:16:53]} {[%emt 00:01:18]} 11. Nd5 {[%clk
00:05:39]} {[%emt 00:04:33]} h6 {[%clk 00:13:47]} {[%emt 00:03:10]} 12. Nxf6+
{[%clk 00:05:09]} {[%emt 00:00:35]} Qxf6 {[%clk 00:13:36]} {[%emt 00:00:15]} 13.
Ne4 {[%clk 00:05:06]} {[%emt 00:00:09]} Qe7 {[%clk 00:13:38]} {[%emt 00:00:02]}
14. Bd2 {[%clk 00:04:20]} {[%emt 00:00:52]} Be6 {[%clk 00:12:24]} {[%emt
00:01:18]} 15. Qc2 {[%clk 00:04:13]} {[%emt 00:00:13]} Rac8 {[%clk 00:12:08]}
{[%emt 00:00:20]} 16. a3 {[%clk 00:02:39]} {[%emt 00:01:41]} f5 {[%clk
00:03:11]} {[%emt 00:09:02]} 17. Nc5 {[%clk 00:02:10]} {[%emt 00:00:33]} Nb8
{[%clk 00:02:44]} {[%emt 00:00:32]} 18. Qa4 {[%clk 00:01:51]} {[%emt 00:00:25]}
Qxc5 {[%clk 00:01:55]} {[%emt 00:00:54]} 19. Bb4 {[%clk 00:01:53]} {[%emt
00:00:01]} Qc2 {[%clk 00:01:57]} {[%emt 00:00:03]} 20. Qxc2 {[%clk 00:01:27]}
{[%emt 00:00:31]} Rxc2 {[%clk 00:02:01]} {[%emt 00:00:02]} 21. Bxf8 {[%clk
00:01:30]} {[%emt 00:00:01]} Bxf8 {[%clk 00:02:05]} {[%emt 00:00:02]} 22. b4
{[%clk 00:00:36]} {[%emt 00:00:59]} b6 {[%clk 00:01:45]} {[%emt 00:00:25]} 23.
Rfe1 {[%clk 00:00:34]} {[%emt 00:00:07]} Nd7 {[%clk 00:01:27]} {[%emt
00:00:23]} 24. Rac1 {[%clk 00:00:38]} {[%emt 00:00:01]} Ra2 {[%emt 00:00:24]}
25. Ra1 {[%emt 00:00:01]} Rxa1 {[%clk 00:00:37]} {[%emt 00:00:36]} 26. Rxa1 a5
27. Rb1 {[%clk 00:00:38]} {[%emt 00:00:12]} Kf7 {[%clk 00:00:42]} {[%emt
00:00:04]} 28. Kf1 {[%clk 00:00:26]} {[%emt 00:00:18]} Bd6 {[%clk 00:00:40]}
{[%emt 00:00:07]} 29. Ke1 {[%clk 00:00:25]} {[%emt 00:00:06]} Nf6 {[%clk
00:00:39]} {[%emt 00:00:07]} 30. bxa5 {[%clk 00:00:16]} {[%emt 00:00:13]} bxa5
{[%clk 00:00:43]} {[%emt 00:00:01]} 31. Rb7+ {[%clk 00:00:20]} {[%emt
00:00:01]} Nd7 {[%clk 00:00:41]} {[%emt 00:00:07]} 32. Ra7 {[%clk 00:00:25]}
{[%emt 00:00:01]} Bxa3 {[%clk 00:00:44]} {[%emt 00:00:02]} 33. Kd1 {[%clk
00:00:15]} {[%emt 00:00:14]} Bb4 {[%clk 00:00:48]} {[%emt 00:00:01]} 34. Bc6
{[%clk 00:00:19]} Ke7 {[%clk 00:00:52]} {[%emt 00:00:01]} 35. Ba4 {[%emt
00:00:03]} Kd6 {[%clk 00:00:44]} {[%emt 00:00:12]} 36. Ra8 {[%clk 00:00:25]}
{[%emt 00:00:02]} Nb6 {[%clk 00:00:44]} {[%emt 00:00:05]} 37. Ra6 {[%clk
00:00:17]} {[%emt 00:00:14]} Kc7 {[%clk 00:00:39]} {[%emt 00:00:10]} 38. Ra7+
{[%clk 00:00:21]} Kb8 {[%clk 00:00:41]} {[%emt 00:00:03]} 39. Re7 {[%clk
00:00:22]} {[%emt 00:00:04]} Bxe7 {[%clk 00:00:43]} {[%emt 00:00:03]} 0-1



[ePGN "0.1;DGT LiveChess/2.2.6"]

[Event "MČR juniorů a juniorek v rapid šachu 2024"]
[Site "Hotel Fit Fun, Harrachov, Czech Republic"]
[Date "2024.09.21"]
[Round "2.13"]
[White "Pejrimovsky Tadeas Rubel"]
[Black "Housa Vojtech"]
[Result "1-0"]
[TimeControl "20+5"]
[WhiteFideId "23709537"]
[BlackFideId "23736364"]
[WhiteElo "1895"]
[BlackElo "1691"]

1. e4 {[%clk 00:20:08]} {[%emt 00:00:01]} c5 {[%clk 00:20:09]} {[%emt
00:00:01]} 2. b4 {[%emt 00:00:05]} cxb4 {[%clk 00:20:07]} {[%emt 00:00:05]} 3.
a3 {[%clk 00:20:15]} d5 {[%clk 00:20:10]} {[%emt 00:00:03]} 4. exd5 Qxd5 {[%clk
00:20:14]} 5. Nf3 {[%clk 00:20:21]} Bg4 {[%clk 00:19:54]} {[%emt 00:00:24]} 6.
Be2 {[%clk 00:19:49]} {[%emt 00:00:37]} Bxf3 {[%clk 00:18:31]} {[%emt
00:01:28]} 7. Bxf3 {[%clk 00:19:52]} {[%emt 00:00:03]} Qe5+ {[%clk 00:18:11]}
{[%emt 00:00:26]} 8. Qe2 {[%clk 00:19:56]} Qxa1 {[%clk 00:17:12]} {[%emt
00:01:03]} 9. Bxb7 {[%clk 00:17:55]} {[%emt 00:02:06]} Nd7 {[%clk 00:13:55]}
{[%emt 00:03:23]} 10. Bxa8 {[%clk 00:17:01]} {[%emt 00:00:59]} Qxb1 {[%clk
00:12:09]} {[%emt 00:01:51]} 11. Qc4 {[%clk 00:16:39]} {[%emt 00:00:27]} e6
{[%clk 00:11:17]} {[%emt 00:00:58]} 12. O-O {[%clk 00:16:30]} {[%emt 00:00:12]}
Qa1 {[%clk 00:10:42]} {[%emt 00:00:41]} 13. c3 {[%clk 00:14:36]} {[%emt
00:01:59]} bxa3 {[%clk 00:08:11]} {[%emt 00:02:36]} 14. Qc8+ {[%clk 00:10:27]}
{[%emt 00:04:14]} Ke7 {[%clk 00:08:15]} {[%emt 00:00:01]} 15. d4 {[%clk
00:10:26]} {[%emt 00:00:06]} Ngf6 {[%clk 00:07:15]} {[%emt 00:01:05]} 16. d5
{[%clk 00:08:33]} {[%emt 00:01:57]} e5 {[%clk 00:05:06]} {[%emt 00:02:14]} 17.
Bg5 {[%clk 00:07:50]} {[%emt 00:00:48]} Qb2 {[%clk 00:04:20]} {[%emt 00:00:52]}
18. Bc6 {[%clk 00:07:52]} {[%emt 00:00:02]} Kd6 {[%clk 00:03:41]} {[%emt
00:00:44]} 19. Bxd7 {[%clk 00:07:36]} {[%emt 00:00:21]} Qb6 {[%clk 00:03:19]}
{[%emt 00:00:27]} 20. Bc6 {[%clk 00:06:19]} {[%emt 00:01:22]} Qc7 {[%clk
00:02:26]} {[%emt 00:00:58]} 21. Qa6 {[%clk 00:05:52]} {[%emt 00:00:31]} Nxd5
{[%clk 00:02:06]} {[%emt 00:00:27]} 22. Bxd5+ {[%clk 00:05:34]} {[%emt
00:00:22]} Kxd5 {[%clk 00:02:07]} {[%emt 00:00:04]} 23. Rd1+ {[%clk 00:05:37]}
{[%emt 00:00:01]} 1-0



[ePGN "0.1;DGT LiveChess/2.2.6"]

[Event "MČR juniorů a juniorek v rapid šachu 2024"]
[Site "Hotel Fit Fun, Harrachov, Czech Republic"]
[Date "2024.09.21"]
[Round "2.14"]
[White "Stastna Martina"]
[Black "Mikolas Petr"]
[Result "1/2-1/2"]
[TimeControl "20+5"]
[WhiteFideId "385123"]
[BlackFideId "23713224"]
[WhiteElo "1801"]
[BlackElo "1892"]

1. e4 {[%clk 00:20:08]} c5 {[%clk 00:20:09]} {[%emt 00:00:02]} 2. Nf3 {[%clk
00:20:12]} {[%emt 00:00:01]} d6 {[%clk 00:20:13]} {[%emt 00:00:02]} 3. Bb5+
{[%clk 00:20:11]} {[%emt 00:00:05]} Nd7 {[%clk 00:20:16]} {[%emt 00:00:02]} 4.
O-O {[%clk 00:20:05]} {[%emt 00:00:10]} a6 {[%clk 00:20:19]} {[%emt 00:00:04]}
5. Be2 {[%clk 00:19:48]} {[%emt 00:00:22]} Ngf6 {[%clk 00:20:06]} {[%emt
00:00:17]} 6. d3 {[%clk 00:19:47]} {[%emt 00:00:06]} b5 {[%clk 00:20:01]}
{[%emt 00:00:10]} 7. b3 {[%clk 00:19:25]} {[%emt 00:00:27]} Bb7 {[%clk
00:19:47]} {[%emt 00:00:19]} 8. Bb2 {[%clk 00:19:20]} {[%emt 00:00:09]} e6
{[%clk 00:19:22]} {[%emt 00:00:31]} 9. Nbd2 {[%clk 00:19:11]} {[%emt 00:00:14]}
Be7 {[%clk 00:19:12]} {[%emt 00:00:15]} 10. Re1 {[%clk 00:18:56]} {[%emt
00:00:20]} O-O {[%clk 00:19:13]} {[%emt 00:00:04]} 11. e5 {[%clk 00:18:32]}
{[%emt 00:00:28]} dxe5 {[%clk 00:19:15]} {[%emt 00:00:04]} 12. Nxe5 {[%clk
00:18:34]} {[%emt 00:00:03]} Nxe5 {[%clk 00:18:42]} {[%emt 00:00:38]} 13. Bxe5
{[%clk 00:18:37]} {[%emt 00:00:02]} Nd7 {[%clk 00:16:04]} {[%emt 00:02:43]} 14.
Bb2 {[%clk 00:18:27]} {[%emt 00:00:16]} Bf6 {[%clk 00:16:06]} {[%emt 00:00:02]}
15. Bxf6 {[%clk 00:18:30]} {[%emt 00:00:02]} Nxf6 {[%clk 00:16:09]} {[%emt
00:00:02]} 16. Bf3 {[%clk 00:18:27]} {[%emt 00:00:08]} Bxf3 {[%clk 00:15:36]}
{[%emt 00:00:39]} 17. Qxf3 {[%clk 00:17:42]} {[%emt 00:00:49]} Qd4 {[%clk
00:14:45]} {[%emt 00:00:55]} 18. Ne4 {[%clk 00:16:40]} {[%emt 00:01:08]} Nd5
{[%clk 00:09:44]} {[%emt 00:05:06]} 19. a4 {[%clk 00:13:51]} {[%emt 00:02:53]}
Rab8 {[%clk 00:08:48]} {[%emt 00:01:02]} 20. h3 {[%clk 00:13:11]} {[%emt
00:00:44]} Nc3 {[%clk 00:06:55]} {[%emt 00:01:59]} 21. axb5 {[%clk 00:12:30]}
{[%emt 00:00:46]} axb5 {[%clk 00:06:30]} {[%emt 00:00:30]} 22. Qe3 {[%clk
00:10:55]} {[%emt 00:01:39]} Qxe3 {[%clk 00:05:15]} {[%emt 00:01:21]} 23. Rxe3
{[%clk 00:10:33]} {[%emt 00:00:27]} Nxe4 {[%clk 00:04:03]} {[%emt 00:01:17]} 24.
Rxe4 {[%clk 00:09:56]} {[%emt 00:00:42]} Ra8 {[%clk 00:04:04]} {[%emt
00:00:03]} 25. Ree1 {[%clk 00:09:56]} {[%emt 00:00:05]} Rfd8 {[%clk 00:03:43]}
{[%emt 00:00:27]} 26. Kf1 {[%clk 00:09:34]} {[%emt 00:00:26]} Kf8 {[%clk
00:03:47]} {[%emt 00:00:02]} 27. Ke2 {[%clk 00:09:24]} {[%emt 00:00:15]} Ke7
{[%emt 00:00:04]} 28. Kd2 {[%clk 00:09:07]} {[%emt 00:00:18]} b4 {[%clk
00:03:37]} {[%emt 00:00:20]} 29. Rxa8 {[%clk 00:06:48]} {[%emt 00:02:24]} Rxa8
{[%clk 00:03:41]} 30. Re4 {[%clk 00:06:52]} Rd8 {[%clk 00:02:41]} {[%emt
00:01:05]} 31. Rc4 {[%clk 00:06:20]} {[%emt 00:00:37]} Rd5 {[%clk 00:02:43]}
{[%emt 00:00:03]} 32. Ke3 {[%clk 00:06:18]} {[%emt 00:00:06]} e5 {[%clk
00:02:45]} {[%emt 00:00:04]} 33. f4 {[%clk 00:04:54]} {[%emt 00:01:29]} exf4+
{[%clk 00:02:31]} {[%emt 00:00:19]} 34. Rxf4 {[%clk 00:04:43]} {[%emt
00:00:17]} g5 {[%clk 00:02:23]} {[%emt 00:00:12]} 35. Rc4 {[%clk 00:04:42]}
{[%emt 00:00:06]} Re5+ {[%clk 00:01:52]} {[%emt 00:00:36]} 36. Re4 {[%clk
00:04:20]} {[%emt 00:00:26]} Kd6 {[%clk 00:01:55]} {[%emt 00:00:03]} 37. d4
{[%clk 00:03:08]} {[%emt 00:01:17]} Rd5 {[%clk 00:01:55]} {[%emt 00:00:05]} 38.
dxc5+ {[%clk 00:02:43]} {[%emt 00:00:30]} Rxc5 {[%clk 00:01:51]} {[%emt
00:00:09]} 39. Kd3 {[%clk 00:02:37]} {[%emt 00:00:10]} Rd5+ {[%clk 00:01:47]}
{[%emt 00:00:10]} 40. Kc4 {[%clk 00:02:11]} {[%emt 00:00:31]} Rc5+ {[%emt
00:01:34]} 41. Kd3 Rd5+ 42. Rd4 Kc5 {[%emt 00:00:01]} 43. Rxd5+ Kxd5 44. c3
bxc3 {[%emt 00:00:04]} 45. Kxc3 {[%emt 00:00:02]} Kc5 {[%emt 00:00:02]} 46. b4+
{[%emt 00:00:01]} Kd5 {[%emt 00:00:02]} 1/2-1/2



[ePGN "0.1;DGT LiveChess/2.2.6"]